bitfinex-derivatives/quotes_SOLF0:USTF0_20250706
["timestamp","ask_amount","ask_price","bid_price","bid_amount"]
[1751793509682,7.28202748,147.4,147.35,45.86]
[1751793509880,16.29793093,147.39,147.36,194.22]
[1751793510082,18.90982922,147.38,147.36,194.22]
[1751793510278,16.55432376,147.37,147.36,194.22]
[1751793513190,16.55432376,147.37,147.35,55.0001679]
[1751793513485,6.7837,147.38,147.35,55.0001679]
[1751793513486,4.92645958,147.36,147.35,55.0001679]
[1751793513690,4.92645958,147.36,147.35,249.2201679]
[1751793514589,4.82645958,147.36,147.35,249.2201679]
[1751793517587,6.7844,147.37,147.35,45.86]
[1751793517791,8.97405048,147.36,147.35,45.86]
[1751793517987,11.57968709,147.36,147.35,240.06]
[1751793518186,8.97405048,147.36,147.35,240.06]
[1751793519292,8.97405048,147.36,147.35,246.8449]
[1751793519591,8.97405048,147.36,147.35,249.2004679]
[1751793519992,6.7832,147.39,147.36,6.7843]
[1751793520188,11.5724765,147.38,147.36,9.1398679]
[1751793520394,6.7832,147.39,147.36,9.1398679]
[1751793520590,11.57215741,147.38,147.36,9.1398679]
[1751793520790,6.7832,147.39,147.36,9.1398679]
[1751793521093,11.57215741,147.38,147.36,9.1398679]
[1751793521284,6.7832,147.39,147.36,9.1398679]
[1751793521486,11.56545752,147.38,147.36,9.1398679]
[1751793521686,6.7832,147.39,147.36,9.1398679]
[1751793521987,11.56545752,147.38,147.36,9.1398679]
[1751793522286,6.7832,147.39,147.36,9.1398679]
[1751793522488,11.55598595,147.38,147.36,9.1398679]
[1751793522787,6.7832,147.39,147.36,9.1398679]
[1751793522985,11.55598562,147.38,147.36,9.1398679]
[1751793523193,6.7832,147.39,147.36,9.1398679]
[1751793523495,11.55568581,147.38,147.36,9.1398679]
[1751793523796,6.7832,147.39,147.36,9.1398679]
[1751793523994,11.55568581,147.38,147.36,9.1398679]
[1751793524297,6.7832,147.39,147.36,9.1398679]
[1751793524496,11.55539209,147.38,147.36,9.1398679]
[1751793524696,6.7832,147.39,147.36,9.1398679]
[1751793524895,11.55539209,147.38,147.36,9.1398679]
[1751793525095,6.7832,147.39,147.36,9.1398679]
[1751793525294,11.55541138,147.38,147.36,9.1398679]
[1751793525495,6.7832,147.39,147.36,9.1398679]
[1751793525695,11.55541138,147.38,147.36,9.1398679]
[1751793525997,6.7828,147.4,147.37,9.1394679]
[1751793526197,11.55507586,147.39,147.38,196.6755679]
[1751793526398,16.42461667,147.39,147.38,196.6755679]
[1751793526897,13.82397742,147.39,147.38,196.6755679]
[1751793527995,2.3797,147.43,147.38,203.4590679]
[1751793528300,16.42138561,147.42,147.4,2.3555679]
[1751793528499,6.7819,147.42,147.41,194.38]
[1751793528699,23.21178139,147.42,147.41,194.38]
[1751793531302,23.21867149,147.42,147.41,194.38]
[1751793532104,16.43677149,147.42,147.41,194.38]
[1751793538907,16.43677149,147.42,147.41,201.1621]
[1751793539608,16.4807414,147.42,147.41,201.1621]
[1751793540209,16.4807414,147.42,147.41,194.38]
[1751793542206,9.00576061,147.42,147.41,194.38]
[1751793542406,16.54432833,147.42,147.41,194.38]
[1751793554720,16.54393529,147.42,147.41,194.38]
[1751793555021,16.54319459,147.42,147.41,194.38]
[1751793562324,23.32489459,147.42,147.41,194.38]
[1751793564328,20.71171441,147.42,147.41,194.38]
[1751793564928,20.71750445,147.42,147.41,194.38]
[1751793573039,13.93580445,147.42,147.41,194.38]
[1751793573338,16.55757141,147.42,147.41,194.38]
[1751793575140,16.55757141,147.42,147.41,201.1621]
[1751793575337,16.55757141,147.42,147.41,203.5176679]
[1751793581641,16.55757141,147.42,147.41,196.7355679]
[1751793588047,16.56489295,147.42,147.41,196.7355679]
[1751793590750,23.34659295,147.42,147.41,194.38]
[1751793591049,23.3656903,147.42,147.41,194.38]
[1751793593749,23.3656903,147.42,147.41,194.02]
[1751793594050,18.41654911,147.42,147.41,194.02]
[1751793594250,23.36565982,147.42,147.41,194.02]
[1751793596448,18.41654911,147.42,147.41,194.02]
[1751793596648,23.36566617,147.42,147.41,194.02]
[1751793597148,23.36557094,147.42,147.41,194.02]
[1751793599052,37.44566848,147.42,147.41,194.02]
[1751793602554,39.80123638,147.42,147.41,194.02]
[1751793602759,6.7824,147.41,147.39,45.9]
[1751793602952,6.7824,147.41,147.4,194.04]
[1751793603262,23.33633789,147.41,147.4,194.04]
[1751793605954,18.90950579,147.41,147.35,48.1755679]
[1751793606148,2.3555679,147.39,147.36,194.04]
[1751793606352,16.55393789,147.38,147.36,194.04]
[1751793606552,13.92879744,147.37,147.36,194.04]
[1751793606851,13.92879744,147.37,147.35,48.17582632]
[1751793607046,2.35582632,147.39,147.36,194.04]
[1751793607253,16.53986051,147.38,147.36,194.04]
[1751793607452,16.53986051,147.37,147.36,200.8242]
[1751793608059,7.53997847,147.37,147.36,200.8242]
[1751793608254,7.53908745,147.37,147.36,200.8242]
[1751793608455,4.91937419,147.37,147.36,200.8242]
[1751793610456,4.91937419,147.37,147.36,203.1794853]
[1751793611557,6.7823,147.41,147.38,6.7833]
[1751793611758,16.48286858,147.4,147.39,194.06]
[1751793614360,16.48286858,147.4,147.39,200.843]
[1751793617962,16.46817505,147.4,147.39,200.843]
[1751793618159,16.46817505,147.4,147.39,194.06]
[1751793620868,8.96152974,147.4,147.39,194.06]
[1751793621168,16.47919065,147.4,147.39,194.06]
[1751793621362,13.86358678,147.4,147.39,194.06]
[1751793621562,16.4791991,147.4,147.39,194.06]
[1751793621860,16.47921495,147.4,147.39,194.06]
[1751793623266,16.47921495,147.4,147.39,200.8431]
[1751793623468,13.86360263,147.4,147.39,203.1983853]
[1751793623767,4.90207289,147.4,147.39,249.0183853]
[1751793625462,16.28058453,147.45,147.42,6.7815]
[1751793625668,11.59422166,147.44,147.43,194.04]
[1751793626464,11.59422166,147.44,147.43,200.8212]
[1751793628066,11.59422166,147.44,147.43,203.1764853]
[1751793629161,16.27918453,147.48,147.44,6.7804]
[1751793629362,11.6040944,147.47,147.44,9.1356853]
[1751793629564,11.6040944,147.46,147.44,9.1356853]
[1751793629761,11.6040944,147.45,147.44,9.1356853]
[1751793636984,11.6040944,147.45,147.44,2.3552853]
[1751793637385,13.9593797,147.45,147.43,194.08]
[1751793637575,25.64757014,147.44,147.42,194.08]
[1751793637887,16.52697651,147.43,147.42,194.08]
[1751793638082,16.52697651,147.43,147.41,45.82]
[1751793638387,16.52690933,147.42,147.41,45.82]
[1751793639183,16.52717767,147.42,147.41,45.82]
[1751793639384,23.30887767,147.42,147.41,45.82]
[1751793641290,16.52717767,147.42,147.41,45.82]
[1751793644391,7.53803556,147.42,147.41,45.82]
[1751793644594,16.55744011,147.42,147.41,45.82]
[1751793645096,16.55873234,147.42,147.41,45.82]
[1751793647896,23.34043234,147.42,147.41,45.82]
[1751793649691,23.34043234,147.42,147.41,239.9]
[1751793650296,23.34043234,147.42,147.41,194.08]
[1751793653700,16.55873234,147.42,147.41,194.08]
[1751793654501,16.55873234,147.42,147.4,6.7825]
[1751793654704,16.55873234,147.41,147.4,6.7825]
[1751793654903,16.55873234,147.41,147.4,200.8225]
[1751793655903,13.92788722,147.41,147.4,200.8225]
[1751793656105,16.55153192,147.41,147.4,200.8225]
[1751793656300,13.92788722,147.41,147.4,200.8225]
[1751793657006,13.87485826,147.41,147.4,200.8225]
[1751793658704,9.01940455,147.41,147.4,200.8225]
[1751793660105,13.87565296,147.41,147.4,200.8225]
[1751793660505,13.87565296,147.41,147.4,203.1777853]
[1751793662205,9.01940455,147.41,147.4,203.1777853]
[1751793662408,16.53079159,147.41,147.4,203.1777853]
[1751793662711,13.90641379,147.41,147.4,203.1777853]
[1751793663597,9.49146993,147.46,147.42,6.7813]
[1751793663807,16.52891892,147.45,147.43,196.4352853]
[1751793663998,16.52891892,147.44,147.43,196.4352853]
[1751793664502,16.52891892,147.44,147.43,203.2164853]
[1751793665199,11.64225164,147.44,147.43,203.2164853]
[1751793665395,16.52922445,147.44,147.43,203.2164853]
[1751793667206,7.51110856,147.44,147.43,249.0564853]
[1751793667402,9.49146993,147.48,147.44,6.7804]
[1751793667603,16.56518102,147.47,147.45,2.3552853]
[1751793667803,16.56518102,147.46,147.45,2.3552853]
[1751793668003,16.56518102,147.46,147.45,196.4552853]
[1751793668200,13.94168488,147.46,147.45,203.2355853]
[1751793668405,16.56518102,147.46,147.45,203.2355853]
[1751793671206,16.56934773,147.46,147.45,203.2355853]
[1751793671507,13.94168488,147.46,147.45,203.2355853]
[1751793674204,13.97101541,147.46,147.45,196.4552853]
[1751793674409,16.59744547,147.46,147.45,196.4552853]
[1751793675811,9.04463104,147.46,147.45,196.4552853]
[1751793677411,16.5986847,147.46,147.45,196.4552853]
[1751793677711,16.60294291,147.46,147.45,196.4552853]
[1751793682415,16.60294291,147.46,147.45,194.1]
[1751793682615,16.60294291,147.46,147.45,196.4552853]
[1751793685519,16.60294291,147.46,147.45,194.1]
[1751793686014,23.38274291,147.46,147.45,194.1]
[1751793687820,18.45676984,147.46,147.45,194.1]
[1751793688020,23.39066155,147.46,147.45,194.1]
[1751793688322,18.45564016,147.46,147.45,194.1]
[1751793688517,20.76377694,147.46,147.45,194.1]
[1751793688827,23.39078328,147.46,147.45,194.1]
[1751793696833,23.39078328,147.46,147.44,2.3552853]
[1751793697032,16.61098328,147.45,147.44,2.3552853]
[1751793697236,16.61098328,147.45,147.44,196.3352853]
[1751793697534,16.58905182,147.45,147.44,196.3352853]
[1751793698433,16.58905182,147.45,147.44,193.98]
[1751793698735,23.36935182,147.45,147.44,193.98]
[1751793699535,16.58905182,147.45,147.44,193.98]
[1751793703136,16.58905182,147.45,147.44,203.1159853]
[1751793706035,16.56704472,147.45,147.44,203.1159853]
[1751793711838,16.56704472,147.45,147.44,196.3352853]
[1751793719747,16.56704472,147.45,147.43,45.84]
[1751793719951,21.09754323,147.44,147.43,45.84]
[1751793720249,6.7817,147.42,147.4,2.3552853]
[1751793720449,16.56704472,147.41,147.4,2.3552853]
[1751793720645,16.56704472,147.41,147.4,196.3352853]
[1751793720847,16.58714816,147.41,147.4,196.3352853]
[1751793721548,16.58714816,147.41,147.4,193.98]
[1751793721851,16.58714816,147.41,147.4,196.3352853]
[1751793722052,16.58714816,147.41,147.4,2.3552853]
[1751793722350,16.58714816,147.41,147.4,196.3352853]
[1751793724151,16.58714816,147.41,147.4,193.98]
[1751793724346,16.58714816,147.41,147.4,200.7626]
[1751793725249,16.58714816,147.41,147.4,203.1178853]
[1751793732050,11.65396413,147.41,147.4,203.1178853]
[1751793732249,9.02695779,147.41,147.4,203.1178853]
[1751793732452,16.57616561,147.41,147.4,203.1178853]
[1751793732751,16.57616561,147.41,147.4,203.1578853]
[1751793734155,7.54920782,147.41,147.4,203.1578853]
[1751793734757,4.90637923,147.41,147.4,203.1578853]
[1751793735055,6.7814,147.43,147.4,203.1578853]
[1751793735458,9.02044593,147.42,147.4,203.1578853]
[1751793735755,6.7814,147.43,147.4,203.1578853]
[1751793735956,9.02044593,147.42,147.4,203.1578853]
[1751793736253,6.7814,147.43,147.4,203.1578853]
[1751793736454,9.01987016,147.42,147.4,203.1578853]
[1751793736648,6.7814,147.43,147.4,203.1578853]
[1751793736849,9.01987016,147.42,147.4,203.1578853]
[1751793737148,6.7814,147.43,147.4,203.1578853]
[1751793737347,9.01956211,147.42,147.4,203.1578853]
[1751793737545,4.90496366,147.41,147.4,203.1578853]
[1751793741159,11.68706366,147.41,147.4,196.3752853]
[1751793741359,4.90496366,147.41,147.4,194.02]
[1751793743161,13.91355167,147.41,147.4,194.02]
[1751793743359,16.5550391,147.41,147.4,194.02]
[1751793743555,16.5550391,147.41,147.39,54.9381853]
[1751793743760,4.90496366,147.4,147.39,54.9381853]
[1751793743962,4.90496366,147.4,147.39,248.9581853]
[1751793745964,6.7821,147.41,147.39,248.9581853]
[1751793746860,6.7821,147.41,147.39,239.82]
[1751793747063,4.89253629,147.4,147.39,239.82]
[1751793752075,11.67513629,147.4,147.39,45.8]
[1751793752273,20.6659805,147.4,147.39,239.82]
[1751793752577,23.0212658,147.4,147.39,239.82]
[1751793753572,23.01352722,147.4,147.39,239.82]
[1751793754078,23.01352722,147.4,147.39,194.02]
[1751793754679,20.65824192,147.4,147.39,194.02]
[1751793755280,20.65824192,147.4,147.37,9.1390853]
[1751793755480,20.65824192,147.4,147.38,194.02]
[1751793755481,6.7826,147.4,147.38,194.02]
[1751793755881,4.88593915,147.39,147.38,194.02]
[1751793756479,4.88593915,147.39,147.38,200.8035]
[1751793756674,4.88593915,147.39,147.38,203.1587853]
[1751793756878,4.88593915,147.39,147.38,196.3752853]
[1751793757676,14.16096688,147.44,147.38,196.3752853]
[1751793757881,6.7817,147.42,147.4,2.3552853]
[1751793758084,16.5250361,147.41,147.4,2.3552853]
[1751793758282,16.5250361,147.41,147.4,196.3752853]
[1751793758483,16.5250361,147.41,147.4,203.1578853]
[1751793759177,4.88714184,147.41,147.4,203.1578853]
[1751793759683,6.7812,147.43,147.4,203.1578853]
[1751793759984,16.53059158,147.42,147.41,2.3552853]
[1751793761081,16.53059158,147.42,147.41,9.1373853]
[1751793762482,16.53059158,147.42,147.4,203.1576853]
[1751793762782,16.53059158,147.41,147.4,203.1576853]
[1751793762979,16.53059158,147.41,147.4,200.8024]
[1751793763881,16.53059158,147.41,147.4,203.1576853]
[1751793768888,16.57106807,147.41,147.4,203.1576853]
[1751793772688,13.92920949,147.41,147.4,203.1576853]
[1751793773087,6.7805,147.45,147.42,6.7813]
[1751793773388,16.59147965,147.44,147.43,196.3552853]
[1751793776294,16.59147965,147.44,147.43,196.2552853]
[1751793776594,16.59147965,147.44,147.43,193.9]
[1751793777394,16.59147965,147.44,147.43,200.6812]
[1751793780595,16.58810737,147.44,147.43,200.6812]
[1751793782196,16.58810737,147.44,147.43,203.0364853]
[1751793782695,11.67563669,147.44,147.43,203.0364853]
[1751793782996,9.02714841,147.44,147.43,203.0364853]
[1751793785396,9.02714841,147.44,147.43,196.2552853]
[1751793788691,9.02714841,147.44,147.43,203.0364853]
[1751793789197,11.67736784,147.44,147.43,203.0364853]
[1751793789397,16.6210245,147.44,147.43,203.0364853]
[1751793790500,16.6210245,147.44,147.43,200.6812]
[1751793795004,16.6210245,147.44,147.43,193.9]
[1751793797603,9.02714841,147.44,147.43,193.9]
[1751793797793,16.62201702,147.44,147.43,193.9]
[1751793799601,16.62201702,147.44,147.43,203.0364853]
[1751793799998,16.62201702,147.44,147.43,196.2552853]
[1751793800605,16.62294711,147.44,147.43,196.2552853]
[1751793801107,16.62294711,147.44,147.43,193.9]
[1751793803504,16.62784925,147.44,147.43,193.9]
[1751793804413,23.40854925,147.44,147.43,193.9]
[1751793809504,23.39823859,147.44,147.43,193.9]
[1751793810214,28.10614368,147.44,147.43,193.9]
[1751793810512,23.39823859,147.44,147.43,193.9]
[1751793811218,28.0934927,147.44,147.43,193.9]
[1751793815819,28.0934927,147.44,147.42,9.1368853]
[1751793816021,6.7807,147.44,147.43,193.96]
[1751793816219,28.11812104,147.44,147.43,193.96]
[1751793818021,28.11812104,147.44,147.42,2.3552853]
[1751793818319,16.62727398,147.43,147.42,196.3152853]
[1751793819821,16.62727398,147.43,147.42,193.96]
[1751793824421,11.69573883,147.43,147.42,193.96]
[1751793824622,16.64814404,147.43,147.42,193.96]
[1751793824920,16.65693303,147.43,147.42,193.96]
[1751793825818,16.65694069,147.43,147.42,200.7417]
[1751793827626,16.65663567,147.43,147.42,200.7417]
[1751793827819,16.65663567,147.43,147.42,203.09538409]
[1751793828625,16.65663567,147.43,147.42,200.7417]
[1751793830534,23.43783567,147.43,147.42,193.96]
[1751793830833,23.43783567,147.43,147.42,193.94]
[1751793831530,28.13557897,147.43,147.42,193.94]
[1751793833723,37.66147888,147.43,147.42,193.94]
[1751793834230,28.13557897,147.43,147.42,193.94]
[1751793835132,21.35437897,147.43,147.42,193.94]
[1751793835328,16.65663567,147.43,147.42,203.07596941]
[1751793836532,16.6544729,147.43,147.42,203.07596941]
[1751793838631,16.64230282,147.43,147.42,203.07596941]
[1751793839033,13.98810233,147.43,147.42,203.07596941]
[1751793839432,16.64035016,147.43,147.42,203.07596941]
[1751793840234,16.64035016,147.43,147.42,248.87596941]
[1751793841832,11.69581294,147.43,147.42,248.87596941]
[1751793842032,16.63153475,147.43,147.42,248.87596941]
[1751793844334,7.59123228,147.43,147.42,248.87596941]
[1751793844636,16.64690437,147.43,147.42,248.87596941]
[1751793844838,16.6682993,147.43,147.42,248.87596941]
[1751793847940,16.67951657,147.43,147.42,248.87596941]
[1751793852245,14.02320938,147.43,147.42,248.87596941]
[1751793855334,16.68729385,147.43,147.42,248.87596941]
[1751793856946,11.71975656,147.43,147.42,248.87596941]
[1751793857149,16.70859155,147.43,147.42,248.87596941]
[1751793857848,11.71974146,147.43,147.42,248.87596941]
[1751793858047,16.70856654,147.43,147.42,248.87596941]
[1751793859550,16.70856654,147.43,147.42,203.07596941]
[1751793860250,16.70856654,147.43,147.42,203.07519525]
[1751793869156,14.04449717,147.43,147.42,203.07519525]
[1751793869458,16.70704446,147.43,147.42,203.07519525]
[1751793871163,16.70704446,147.43,147.42,200.7217]
[1751793872164,16.69670431,147.43,147.42,200.7217]
[1751793873564,16.69670431,147.43,147.42,203.07519525]
[1751793874764,16.70566885,147.43,147.42,203.07519525]
[1751793878067,16.70467485,147.43,147.42,203.07519525]
[1751793881972,16.70146662,147.43,147.42,203.07519525]
[1751793887081,16.68015679,147.43,147.42,203.07519525]
[1751793887580,16.68015679,147.43,147.42,200.7217]
[1751793893080,9.0614284,147.43,147.42,200.7217]
[1751793893385,16.69027808,147.43,147.42,200.7217]
[1751793893586,11.721545,147.43,147.42,200.7217]
[1751793893787,16.6901452,147.43,147.42,200.7217]
[1751793914194,7.6287168,147.43,147.42,200.7217]
[1751793914399,16.74111935,147.43,147.42,200.7217]
[1751793914798,21.88192118,147.43,147.42,200.7217]
[1751793915495,16.74719297,147.43,147.42,200.7217]
[1751793918106,16.74726785,147.43,147.42,200.7217]
[1751793919804,16.74726785,147.43,147.42,193.94]
[1751793922107,16.74726785,147.43,147.42,200.7217]
[1751793922303,16.74451749,147.43,147.42,200.7217]
[1751793943129,14.07825239,147.43,147.42,200.7217]
[1751793943429,16.73885197,147.43,147.42,200.7217]
[1751793945024,9.52352249,147.47,147.42,193.94]
[1751793945228,9.52352249,147.48,147.46,2.35230795]
[1751793945528,9.52352249,147.48,147.47,193.82]
[1751793945729,14.23182703,147.48,147.47,193.82]
[1751793945930,4.70830454,147.48,147.47,193.82]
[1751793946524,11.48750454,147.48,147.47,193.82]
[1751793948832,4.70830454,147.48,147.47,193.82]
[1751793950535,11.48720454,147.48,147.47,193.82]
[1751793952137,11.52167636,147.48,147.47,193.82]
[1751793952737,11.52131711,147.48,147.47,193.82]
[1751793955337,11.53363891,147.48,147.47,193.82]
[1751793956931,25.49908353,147.48,147.47,193.82]
[1751793957136,28.09479339,147.48,147.47,193.82]
[1751793958440,28.09462034,147.48,147.47,193.82]
[1751793961242,23.33988143,147.48,147.47,193.82]
[1751793964643,25.69218938,147.48,147.47,193.82]
[1751793964944,23.66614307,147.48,147.41,45.76]
[1751793965140,2.35230795,147.44,147.41,45.76]
[1751793965341,13.96544462,147.43,147.41,52.5419]
[1751793965542,4.91900396,147.42,147.41,52.5419]
[1751793966044,4.91900396,147.42,147.41,54.89420795]
[1751793966545,6.78,147.46,147.42,6.7816]
[1751793966843,16.56471708,147.45,147.44,2.35230795]
[1751793967247,13.96936784,147.45,147.44,2.35230795]
[1751793967442,4.92958757,147.45,147.44,2.35230795]
[1751793968848,4.92958757,147.45,147.44,9.13300795]
[1751793969044,13.94140692,147.45,147.44,9.13300795]
[1751793969546,13.94140692,147.45,147.44,2.35230795]
[1751793969850,16.5332481,147.45,147.44,2.35230795]
[1751793971651,16.5332481,147.45,147.44,9.13300795]
[1751793977054,16.5332481,147.45,147.44,6.7807]
[1751793978455,16.52069538,147.45,147.44,6.7807]
[1751793983461,16.52069538,147.45,147.44,9.13300795]
[1751793985660,16.52069538,147.45,147.44,6.7807]
[1751793985858,16.52069538,147.45,147.44,9.13300795]
[1751793987660,16.52069538,147.45,147.44,2.35230795]
[1751793987861,16.52069538,147.45,147.41,48.11230795]
[1751793988061,16.52069538,147.44,147.41,48.11230795]
[1751793988263,16.52069538,147.43,147.41,54.89410795]
[1751793988452,13.94140692,147.42,147.41,54.89410795]
[1751793993069,4.92958757,147.42,147.41,54.89410795]
[1751793994872,13.94122961,147.42,147.41,54.89410795]
[1751793996472,13.8830752,147.42,147.41,54.89410795]
[1751793997072,4.87143316,147.42,147.41,54.89410795]
[1751793999673,18.63735942,147.46,147.42,6.7814]
[1751793999875,16.44463251,147.45,147.43,193.78]
[1751794000076,16.44463251,147.44,147.43,193.78]
[1751794000676,16.44463251,147.44,147.43,200.5612]
[1751794000877,16.44463251,147.44,147.43,202.91350795]
[1751794001474,13.87035264,147.44,147.43,202.91350795]
[1751794001878,4.87029189,147.44,147.43,202.91350795]
[1751794004782,4.87029189,147.44,147.43,200.5612]
[1751794004983,4.87029189,147.44,147.43,202.91350795]
[1751794011088,13.88910109,147.44,147.43,202.91350795]
[1751794012189,4.87029189,147.44,147.43,202.91350795]
[1751794012986,16.45904167,147.44,147.43,202.91350795]
[1751794017396,9.00990071,147.44,147.43,202.91350795]
[1751794017594,16.47640762,147.44,147.43,202.91350795]
[1751794017892,16.4765753,147.44,147.43,202.91350795]
[1751794019095,4.88746778,147.44,147.43,202.91350795]
[1751794021096,4.88746778,147.44,147.43,248.65350795]
[1751794023698,6.7793,147.48,147.44,6.7807]
[1751794023889,16.48606319,147.47,147.45,196.11230795]
[1751794024096,11.81815147,147.5,147.46,2.35230795]
[1751794024292,16.48148712,147.49,147.47,196.11230795]
[1751794024493,16.48148712,147.48,147.47,202.89170795]
[1751794028597,13.90176392,147.48,147.47,202.89170795]
[1751794028798,13.90176392,147.48,147.47,248.63170795]
[1751794028999,4.8850039,147.48,147.47,248.63170795]
[1751794031407,6.7776,147.51,147.47,248.63170795]
[1751794031604,16.53637953,147.5,147.49,2.35230795]
[1751794038108,16.53637953,147.5,147.48,2.35230795]
[1751794038314,13.95049276,147.49,147.48,2.35230795]
[1751794038713,13.95633176,147.49,147.48,2.35230795]
[1751794040611,18.89348189,147.49,147.38,585.54]
[1751794040813,2.35230795,147.47,147.44,45.74]
[1751794041017,6.7806,147.45,147.42,241.91230795]
[1751794041316,13.95968707,147.44,147.42,241.91230795]
[1751794041617,4.92829562,147.43,147.42,248.69370795]
[1751794042016,9.13230795,147.46,147.42,248.69370795]
[1751794042212,16.55800514,147.45,147.42,248.69370795]
[1751794042518,4.9308641,147.44,147.42,248.69370795]
[1751794042719,9.13230795,147.46,147.42,248.69370795]
[1751794043020,16.55819466,147.45,147.43,6.7812]
[1751794043320,13.97200798,147.44,147.43,6.7812]
[1751794043517,13.97240242,147.44,147.43,6.7812]
[1751794046624,13.97304112,147.44,147.43,6.7812]
[1751794047525,4.93225145,147.44,147.43,6.7812]
[1751794048120,4.93225145,147.44,147.43,202.97350795]
[1751794050527,4.93225145,147.44,147.43,202.95350795]
[1751794051628,13.9194147,147.44,147.43,202.95350795]
[1751794053730,13.9194147,147.44,147.43,193.82]
[1751794053927,16.49508031,147.44,147.42,54.87380795]
[1751794054127,6.7803,147.45,147.43,193.8]
[1751794054331,16.40533884,147.44,147.43,193.8]
[1751794056130,13.82977288,147.44,147.43,193.8]
[1751794056325,4.85295648,147.44,147.43,193.8]
[1751794057426,13.8374177,147.44,147.43,193.8]
[1751794061835,13.83563883,147.44,147.43,193.8]
[1751794063536,13.83563883,147.44,147.42,54.87380795]
[1751794063730,4.85117761,147.43,147.42,248.67380795]
[1751794065430,6.7803,147.45,147.42,248.67380795]
[1751794065630,13.83605166,147.44,147.42,248.67380795]
[1751794065837,6.7803,147.45,147.43,2.35230795]
[1751794066038,13.83395426,147.44,147.43,2.35230795]
[1751794066529,16.40169563,147.44,147.43,2.35230795]
[1751794067035,16.40169563,147.44,147.42,52.5215]
[1751794067237,4.86549825,147.43,147.42,54.87380795]
[1751794067435,6.7803,147.45,147.43,193.78]
[1751794067630,16.39890176,147.44,147.43,193.78]
[1751794068031,16.39889803,147.44,147.43,193.78]
[1751794068839,6.7812,147.43,147.42,45.74]
[1751794069039,11.64576227,147.43,147.42,45.74]
[1751794069535,20.6112258,147.43,147.42,45.74]
[1751794071041,4.86456227,147.43,147.42,45.74]
[1751794071339,4.86456227,147.43,147.42,48.09230795]
[1751794071540,2.35230795,147.47,147.42,48.09230795]
[1751794071741,16.38926528,147.46,147.44,2.35230795]
[1751794071937,2.4159,147.48,147.45,196.23230795]
[1751794072142,16.38168687,147.47,147.46,2.35230795]
[1751794076545,16.3868449,147.47,147.46,2.35230795]
[1751794077941,16.3868449,147.47,147.46,9.13210795]
[1751794079249,16.3868449,147.47,147.46,54.87210795]
[1751794079545,16.43003613,147.47,147.46,54.87210795]
[1751794081453,13.85235234,147.47,147.46,54.87210795]
[1751794081746,16.43096581,147.47,147.46,54.87210795]
[1751794083447,16.43096581,147.47,147.46,48.09230795]
[1751794089756,16.33096581,147.47,147.46,48.09230795]
[1751794090555,16.3342171,147.47,147.46,48.09230795]
[1751794095158,16.3342171,147.47,147.46,45.74]
[1751794095460,16.3342171,147.47,147.46,48.09230795]
[1751794096154,16.3342171,147.47,147.46,54.87210795]
[1751794097959,16.3342171,147.47,147.46,48.09230795]
[1751794098960,16.36337816,147.47,147.46,48.09230795]
[1751794108562,13.77592687,147.47,147.46,48.09230795]
[1751794108763,16.36263421,147.47,147.46,48.09230795]
[1751794112262,16.36263421,147.47,147.46,45.74]
[1751794116863,13.77592687,147.47,147.46,45.74]
[1751794117463,13.77592687,147.47,147.46,48.09230795]
[1751794117762,8.85975826,147.47,147.46,48.09230795]
[1751794117964,9.0583103,147.47,147.46,48.09230795]
[1751794120065,9.0583103,147.47,147.46,45.74]
[1751794120565,11.65117799,147.47,147.46,45.74]
[1751794120770,16.58098508,147.47,147.46,45.74]
[1751794121266,16.58098508,147.47,147.45,248.75240795]
[1751794121466,16.58098508,147.46,147.45,248.75240795]
[1751794122767,16.58098508,147.46,147.45,248.75257148]
[1751794124166,16.59294563,147.46,147.45,248.75257148]
[1751794137180,13.98811739,147.46,147.45,248.75257148]
[1751794137376,16.59106293,147.46,147.45,248.75257148]
[1751794138278,16.59107972,147.46,147.45,248.75257148]
[1751794140990,16.59092314,147.46,147.45,248.75257148]
[1751794143188,16.59092314,147.46,147.45,248.65257148]
[1751794144084,9.05815372,147.46,147.45,248.65257148]
[1751794144292,16.59260487,147.46,147.45,248.65257148]
[1751794144795,9.52573481,147.5,147.45,241.87130516]
[1751794144986,9.52573481,147.5,147.49,2.35130516]
[1751794145187,9.52573481,147.5,147.49,196.09130516]
[1751794145385,18.71153481,147.51,147.49,196.09130516]
[1751794146892,4.7468801,147.5,147.49,196.09130516]
[1751794147896,11.5248801,147.5,147.49,196.09130516]